bitfinex-derivatives/quotes_SOLF0:USTF0_20250212
["timestamp","ask_amount","ask_price","bid_price","bid_amount"]
[1739354329187,8.94373851,196.96,196.93,0.03219898]
[1739354329490,14.02113851,196.94,196.89,5.0786]
[1739354330586,0.03406084,196.93,196.9,0.03516931]
[1739354331692,5.0782,196.91,196.86,8.94373851]
[1739354332379,8.94373851,196.92,196.86,8.94373851]
[1739354332584,14.02213851,196.9,196.85,5.0795]
[1739354332990,0.03356822,196.89,196.86,0.03782756]
[1739354334588,8.94373851,196.88,196.82,8.94373851]
[1739354334793,8.94373851,196.86,196.79,8.94373851]
[1739354335185,8.94373851,196.86,196.72,0.3491]
[1739354335186,8.94373851,196.84,196.8,5.081]
[1739354335889,0.03228587,196.84,196.8,5.11824619]
[1739354339493,0.03228587,196.84,196.81,5.0808]
[1739354340295,0.03228587,196.84,196.82,5.0805]
[1739354340698,0.03228587,196.84,196.8,0.03724619]
[1739354340896,0.03228587,196.84,196.8,5.11804619]
[1739354341401,8.94373851,196.82,196.8,0.03724619]
[1739354341794,8.94373851,196.82,196.75,8.94373851]
[1739354341994,8.94373851,196.82,196.77,5.0816]
[1739354342396,8.94373851,196.82,196.75,8.94373851]
[1739354342598,8.94373851,196.82,196.78,5.0815]
[1739354342899,8.94373851,196.82,196.78,5.11657901]
[1739354343500,8.94373851,196.82,196.78,0.03507901]
[1739354344200,8.94373851,196.8,196.78,0.03507901]
[1739354344393,8.94373851,196.8,196.73,8.94373851]
[1739354344791,8.94373851,196.8,196.76,5.0821]
[1739354345104,8.94373851,196.82,196.75,8.94373851]
[1739354345598,0.03800333,196.8,196.78,5.0815]
[1739354346201,0.03800333,196.8,196.77,8.98175984]
[1739354346403,0.03800333,196.8,196.79,14.02503851]
[1739354348405,0.03800333,196.8,196.79,8.94373851]
[1739354348904,0.03800333,196.8,196.77,0.03802133]
[1739354349100,8.98174184,196.8,196.77,0.03802133]
[1739354349605,14.06284184,196.8,196.77,0.03802133]
[1739354350100,8.98174184,196.8,196.77,0.03802133]
[1739354351101,14.06274184,196.8,196.77,0.03802133]
[1739354351704,8.98174184,196.8,196.77,0.03802133]
[1739354351905,0.03800333,196.8,196.77,0.03802133]
[1739354352102,0.03800333,196.8,196.78,5.0814]
[1739354352302,0.03800333,196.8,196.77,8.98175984]
[1739354352501,0.03800333,196.8,196.77,14.06355984]
[1739354353005,0.03800333,196.8,196.77,0.03802133]
[1739354353904,5.11900333,196.8,196.77,0.03802133]
[1739354354508,0.03800333,196.8,196.77,0.03802133]
[1739354356307,0.03800333,196.8,196.77,8.98175984]
[1739354357912,0.03800333,196.8,196.77,14.06345984]
[1739354358613,0.03800333,196.8,196.78,5.0815]
[1739354358914,0.03800333,196.8,196.77,8.98175984]
[1739354359110,8.98174184,196.8,196.77,0.03802133]
[1739354359513,0.03800333,196.8,196.77,0.03802133]
[1739354361612,0.03800333,196.8,196.78,5.0815]
[1739354362314,0.03800333,196.8,196.77,8.98175984]
[1739354362514,8.98174184,196.8,196.77,0.03802133]
[1739354365615,0.03800333,196.8,196.77,0.03802133]
[1739354366210,0.03800333,196.8,196.79,5.0813]
[1739354372224,0.03800333,196.8,196.77,0.03802133]
[1739354372624,8.98174184,196.8,196.77,0.03802133]
[1739354372826,8.94373851,196.78,196.77,0.03802133]
[1739354373226,14.02523851,196.78,196.77,0.03802133]
[1739354374823,5.0819,196.77,196.71,8.94373851]
[1739354375128,8.94373851,196.76,196.71,8.94373851]
[1739354375826,8.94373851,196.78,196.73,5.0828]
[1739354376027,0.03910301,196.75,196.73,5.0828]
[1739354376328,0.03910301,196.75,196.72,0.03472593]
[1739354377130,0.03910301,196.75,196.74,5.0826]
[1739354380729,0.03910301,196.75,196.72,0.03472593]
[1739354381030,0.03910301,196.75,196.73,5.0828]
[1739354381632,0.03910301,196.75,196.72,0.03472593]
[1739354382025,8.94373851,196.74,196.72,0.03472593]
[1739354383229,8.94373851,196.74,196.6,45.14004533]
[1739354383230,8.94373851,196.74,196.65,8.94373851]
[1739354383436,8.94373851,196.71,196.66,5.0846]
[1739354383630,8.94373851,196.71,196.65,8.94373851]
[1739354384132,8.94373851,196.71,196.66,5.0844]
[1739354384332,8.94373851,196.71,196.65,8.94373851]
[1739354384632,0.03752395,196.7,196.67,0.03377207]
[1739354384930,0.03752395,196.7,196.67,8.97751058]
[1739354385630,0.03752395,196.7,196.69,5.0839]
[1739354401738,0.03752395,196.7,196.67,8.97751058]
[1739354401739,0.03752395,196.7,196.68,5.0841]
[1739354402342,0.03752395,196.7,196.67,0.03377207]
[1739354402735,8.94373851,196.69,196.67,0.03377207]
[1739354403034,8.94373851,196.69,196.62,5.0855]
[1739354403240,8.94373851,196.66,196.59,8.94373851]
[1739354403436,8.94373851,196.64,196.58,5.0865]
[1739354403938,8.94373851,196.64,196.59,5.0864]
[1739354404139,0.03535606,196.63,196.59,5.12395101]
[1739354404446,0.03535606,196.63,196.59,0.03755101]
[1739354404637,0.03535606,196.63,196.59,5.12395101]
[1739354404832,0.03535606,196.63,196.59,0.03755101]
[1739354405036,0.03535606,196.63,196.62,5.0857]
[1739354406442,5.606e-05,196.63,196.62,5.0857]
[1739354406838,8.94373851,196.74,196.61,8.94373851]
[1739354407038,8.94373851,196.74,196.7,5.0836]
[1739354407239,8.94373851,196.74,196.68,8.94373851]
[1739354407439,1.5825,196.75,196.68,8.94373851]
[1739354407640,1.5825,196.75,196.72,5.0831]
[1739354407847,1.5825,196.75,196.68,8.94373851]
[1739354408042,0.03640427,196.75,196.72,8.97636747]
[1739354408240,85.00294234,196.76,196.74,5.0826]
[1739354408537,0.036286,196.75,196.74,5.0826]
[1739354410135,0.036286,196.75,196.73,5.0828]
[1739354410541,0.036286,196.75,196.72,8.97855366]
[1739354410841,0.036286,196.75,196.74,5.0826]
[1739354413445,0.036286,196.75,196.74,14.02633851]
[1739354413944,8.6e-05,196.75,196.74,14.02633851]
[1739354415845,1.5993,196.83,196.74,8.94373851]
[1739354416049,1.5993,196.83,196.8,5.081]
[1739354416647,6.6797,196.83,196.77,14.02533851]
[1739354416837,6.6797,196.83,196.77,8.94373851]
[1739354417036,0.03528512,196.82,196.78,0.03472028]
[1739354417242,0.03528512,196.82,196.79,5.0811]
[1739354418148,0.03528512,196.82,196.8,5.0809]
[1739354418449,0.03528512,196.82,196.78,0.03472028]
[1739354419549,8.97902363,196.82,196.78,0.03472028]
[1739354419750,8.94373851,196.8,196.71,8.94373851]
[1739354419954,8.94373851,196.78,196.71,8.94373851]
[1739354420746,8.94373851,196.74,196.67,8.94373851]
[1739354420952,8.94373851,196.74,196.73,0.03886966]
[1739354421245,8.94373851,196.74,196.67,8.94373851]
[1739354421451,8.94373851,196.74,196.72,0.03720084]
[1739354421651,3.108,196.75,196.72,0.03720084]
[1739354421950,8.1903,196.75,196.72,0.03720084]
[1739354423050,3.108,196.75,196.72,0.03720084]
[1739354425455,1.4974,196.75,196.72,0.03720084]
[1739354425650,0.03517113,196.76,196.72,0.03720084]
[1739354426554,0.03517113,196.76,196.75,5.0823]
[1739354427555,0.03517113,196.76,196.72,0.03720084]
[1739354429045,13.99740092,196.76,196.72,0.03720084]
[1739354430645,0.03517113,196.76,196.72,5.12030084]
[1739354432754,0.03517113,196.76,196.74,5.0825]
[1739354433053,0.03517113,196.76,196.72,0.03720084]
[1739354433444,0.03517113,196.76,196.75,5.0823]
[1739354434458,7.113e-05,196.76,196.75,5.0823]
[1739354435347,14.22189,196.85,196.8,5.0809]
[1739354435551,9.14209,196.85,196.8,5.0809]
[1739354436552,0.0340129,196.84,196.81,0.03323157]
[1739354437251,0.0340129,196.84,196.81,5.11373157]
[1739354438255,0.0340129,196.84,196.81,0.03323157]
[1739354440158,0.0340129,196.84,196.81,5.11393157]
[1739354440356,0.0340129,196.84,196.81,0.03323157]
[1739354440858,0.0340129,196.84,196.81,5.11373157]
[1739354441558,0.0340129,196.84,196.81,0.03323157]
[1739354441753,0.0340129,196.84,196.82,5.0804]
[1739354442259,0.0340129,196.84,196.83,5.0802]
[1739354448259,1.29e-05,196.84,196.83,5.0802]
[1739354448463,1.5251,196.93,196.89,5.0785]
[1739354449559,1.5597262,196.93,196.89,5.11243]
[1739354450759,1.5597262,196.93,196.89,0.03393]
[1739354450955,1.5597262,196.93,196.9,5.0784]
[1739354451560,1.5597262,196.93,196.89,0.03393]
[1739354451561,0.0346262,196.93,196.92,5.0779]
[1739354460972,1.6136,197.02,196.92,13.96222979]
[1739354461668,5.0762,196.99,196.94,5.0772]
[1739354462063,1.6136,197.02,196.92,13.96222979]
[1739354462270,0.03366542,196.98,196.95,0.03271116]
[1739354462669,0.03366542,196.98,196.95,5.10961116]
[1739354463466,0.03366542,196.98,196.96,5.0769]
[1739354464369,0.03366542,196.98,196.97,13.98670744]
[1739354474775,0.03366542,196.98,196.97,5.0766]
[1739354476181,0.03366542,196.98,196.95,14.0198186]
[1739354476374,0.03366542,196.98,196.95,0.03271116]
[1739354476574,8.94377286,196.98,196.95,0.03271116]
[1739354476873,5.0773,196.95,196.9,5.0782]
[1739354477078,8.91010744,196.94,196.87,8.91010744]
[1739354477980,0.03257514,196.92,196.89,0.03272772]
[1739354478381,0.03257514,196.92,196.89,5.11142772]
[1739354479783,0.03257514,196.92,196.9,5.0784]
[1739354480674,0.03257514,196.92,196.89,14.02153516]
[1739354481278,0.03257514,196.92,196.9,5.0784]
[1739354481777,0.03257514,196.92,196.89,8.94283516]
[1739354482178,0.03257514,196.92,196.89,14.02153516]
[1739354483580,0.03257514,196.92,196.89,8.94283516]
[1739354483777,0.03257514,196.92,196.89,0.03272772]
[1739354484979,0.03257514,196.92,196.83,48.83302001]
[1739354484980,8.94268258,196.92,196.85,8.91010744]
[1739354485376,8.94268258,196.92,196.86,5.0795]
[1739354485377,14.02068258,196.92,196.86,5.0795]
[1739354485681,8.94268258,196.92,196.85,8.91010744]
[1739354485881,13.98880744,196.9,196.84,5.0799]
[1739354486177,8.91010744,196.9,196.87,0.03783355]
[1739354486378,1.5233,196.89,196.84,5.0799]
[1739354487482,1.5233,196.89,196.85,0.03437309]
[1739354488081,6.6342608,196.89,196.85,0.03437309]
[1739354488275,1.5555608,196.89,196.85,0.03437309]
[1739354488580,5.0793,196.87,196.83,8.91010744]
[1739354488879,1.4776,196.86,196.83,8.91010744]
[1739354489483,1.4776,196.86,196.83,8.94406333]
[1739354489682,6.5571,196.86,196.83,0.03395589]
[1739354490784,5.0798,196.85,196.81,8.91010744]
[1739354491881,5.11252665,196.85,196.81,8.94796597]
[1739354492583,0.03272665,196.85,196.81,8.94796597]
[1739354494080,0.03272665,196.85,196.81,14.02876597]
[1739354494288,0.03272665,196.85,196.81,8.94796597]
[1739354495083,0.03272665,196.85,196.82,5.0805]
[1739354498491,0.03272665,196.85,196.83,5.0801]
[1739354499494,0.03272665,196.85,196.81,14.02866597]
[1739354499795,0.03272665,196.85,196.81,8.94796597]
[1739354500095,0.03272665,196.85,196.83,5.0802]
[1739354500394,0.03272665,196.85,196.83,8.91010744]
[1739354501096,0.03272665,196.85,196.84,5.08]
[1739354502606,0.03272665,196.85,196.83,8.91010744]
[1739354502895,0.03272665,196.85,196.81,8.94796597]
[1739354503287,0.03272665,196.85,196.81,0.03785853]
[1739354503998,5.08,196.84,196.81,0.03785853]
[1739354506300,8.91010744,196.84,196.81,0.03785853]
[1739354506594,8.91010744,196.82,196.75,8.91010744]
[1739354507098,1.5364,196.81,196.75,8.91010744]
[1739354507599,8.91010744,196.8,196.74,5.0825]
[1739354507799,8.91010744,196.78,196.76,0.03413863]
[1739354508099,5.0821,196.76,196.71,8.91010744]
[1739354508299,13.99220744,196.76,196.7,5.0834]
[1739354508501,8.91010744,196.78,196.71,8.91010744]
[1739354508698,8.91010744,196.78,196.74,5.0826]
[1739354508896,8.91010744,196.78,196.71,8.91010744]
[1739354509097,8.94376858,196.78,196.74,0.03354328]
[1739354509297,8.91010744,196.78,196.73,8.91010744]
[1739354509498,8.94224649,196.78,196.74,0.03829334]
[1739354510201,14.02384649,196.78,196.74,0.03829334]
[1739354510400,8.94224649,196.78,196.74,0.03829334]
[1739354510702,8.91010744,196.76,196.69,8.91010744]
[1739354511903,0.03206529,196.74,196.71,0.03286474]
[1739354516303,5.083,196.73,196.71,0.03286474]
[1739354516508,8.91010744,196.72,196.65,8.91010744]
[1739354516705,10.47780744,196.72,196.65,8.91010744]
[1739354517409,8.91010744,196.7,196.63,8.91010744]
[1739354517609,14.0320598,196.7,196.63,13.99530744]
[1739354518008,8.9484598,196.7,196.63,8.91010744]
[1739354518202,14.0320598,196.7,196.63,8.91010744]
[1739354518700,8.9484598,196.7,196.65,8.91010744]
[1739354519102,8.91010744,196.7,196.65,8.91010744]
[1739354519305,8.91010744,196.7,196.67,5.0842]
[1739354519306,0.03278101,196.69,196.67,5.0842]
[1739354520013,0.03278101,196.69,196.68,5.0841]
[1739354521112,10.48550744,196.78,196.67,8.91010744]
[1739354521311,1.5754,196.78,196.73,8.91010744]
[1739354521609,1.5754,196.78,196.7,13.95328589]
[1739354521806,1.5754,196.78,196.76,5.082]
[1739354523311,0.03592957,196.79,196.75,0.03754625]
[1739354523507,0.03592957,196.79,196.78,5.0815]
[1739354524012,0.03592957,196.79,196.77,5.0816]
[1739354524905,0.03592957,196.79,196.75,5.11964625]
[1739354525318,0.03592957,196.79,196.75,0.03754625]
[1739354525519,0.03592957,196.79,196.77,5.0817]
[1739354526216,0.03592957,196.79,196.75,0.03754625]
[1739354526514,0.03592957,196.79,196.76,5.082]
[1739354528215,0.03592957,196.79,196.77,5.0817]
[1739354528416,0.03592957,196.79,196.75,0.03754625]
[1739354529516,0.03592957,196.79,196.77,5.0816]
[1739354529817,0.03592957,196.79,196.75,0.03754625]
[1739354530422,0.03592957,196.79,196.77,5.0816]
[1739354532216,0.03592957,196.79,196.75,0.03754625]
[1739354532611,19.03528589,196.77,196.67,13.95328589]
[1739354533012,13.95328589,196.77,196.67,13.95328589]
[1739354533209,13.95328589,196.74,196.61,13.95328589]
[1739354533815,0.03490324,196.69,196.61,13.95328589]
[1739354535217,0.03490324,196.69,196.64,13.95328589]
[1739354535414,13.95328589,196.77,196.64,13.95328589]
[1739354535618,0.03910886,196.68,196.65,5.0848]
[1739354535921,13.95328589,196.77,196.64,13.95328589]
[1739354536121,5.0821,196.76,196.69,5.0837]
[1739354536322,0.03310197,196.75,196.69,5.0837]
[1739354537113,0.03310197,196.75,196.7,5.0835]
[1739354537319,0.03310197,196.75,196.7,13.95328589]
[1739354537718,0.03310197,196.75,196.74,5.0826]
[1739354540922,1.97e-06,196.75,196.74,5.0826]
[1739354545119,1.5652,196.85,196.81,5.0808]
[1739354545323,6.6449,196.85,196.76,13.95328589]
[1739354545627,6.6449,196.85,196.79,5.081]
[1739354546227,0.03739718,196.84,196.8,5.11789561]
[1739354546529,5.11759718,196.84,196.8,0.03689561]
[1739354546731,0.03739718,196.84,196.8,0.03689561]
[1739354547427,5.0806,196.82,196.8,0.03689561]
[1739354548923,1.60049718,196.84,196.8,0.03689561]
[1739354549123,5.0808,196.81,196.73,13.95328589]
[1739354549627,5.0805,196.82,196.76,5.0821]
[1739354550329,0.03653887,196.81,196.77,5.0817]
[1739354550628,0.03653887,196.81,196.73,13.95328589]
[1739354550927,0.03653887,196.81,196.8,5.081]
[1739354552226,0.03653887,196.81,196.78,5.0814]
[1739354553822,0.03653887,196.81,196.76,13.95328589]
[1739354556631,0.03653887,196.81,196.8,5.081]
[1739354557329,3.887e-05,196.81,196.8,5.081]
[1739354567636,3.887e-05,196.81,196.8,14.00232201]
[1739354568638,1.5646,196.88,196.86,5.0795]
[1739354568937,6.566,196.91,196.87,8.92132201]
[1739354569132,1.4876,196.91,196.89,5.0787]
[1739354569331,1.4876,196.91,196.89,14.00002201]
[1739354570136,1.4876,196.91,196.89,8.92132201]
[1739354570833,1.4876,196.91,196.89,14.00002201]
[1739354571740,0.03667999,196.92,196.9,5.0784]
[1739354573036,0.03667999,196.92,196.88,0.03554572]
[1739354574241,0.03667999,196.92,196.88,5.11434572]
[1739354574640,0.03667999,196.92,196.88,0.03554572]
[1739354575755,5.11487999,196.92,196.88,0.03554572]
[1739354576054,0.03667999,196.92,196.88,0.03554572]
[1739354577453,0.03667999,196.92,196.9,5.0783]
[1739354578749,0.03667999,196.92,196.89,5.0787]
[1739354580261,0.03667999,196.92,196.9,5.0784]
[1739354580758,0.03667999,196.92,196.88,0.03554572]
[1739354581758,0.03667999,196.92,196.9,5.0784]
[1739354584358,0.03667999,196.92,196.89,5.0786]
[1739354584660,0.03667999,196.92,196.88,0.03554572]
[1739354584859,0.03667999,196.92,196.9,5.0784]
[1739354585158,0.03667999,196.92,196.88,0.03554572]
[1739354585556,0.03667999,196.92,196.91,5.0782]
[1739354586155,0.03667999,196.92,196.88,0.03554572]
[1739354587458,5.0782,196.91,196.88,0.03554572]
[1739354587660,6.6721,196.91,196.88,0.03554572]
[1739354588058,5.0785,196.9,196.88,0.03554572]
[1739354588462,1.5939,196.91,196.79,13.93253275]
[1739354588759,13.93253275,196.89,196.76,13.93253275]
[1739354589362,5.0795,196.86,196.8,5.081]
[1739354589567,5.0795,196.86,196.76,13.93253275]
[1739354589761,0.03677544,196.85,196.76,13.93253275]
[1739354590161,0.03677544,196.85,196.79,5.081]
[1739354590572,5.11647544,196.85,196.79,5.081]
[1739354590868,0.03677544,196.85,196.8,5.081]
[1739354591065,0.03677544,196.85,196.76,13.93253275]
[1739354591669,0.03677544,196.85,196.83,5.0801]
[1739354591871,8.92292377,196.88,196.83,5.0801]
[1739354592066,0.03818354,196.86,196.83,5.0801]
[1739354592265,0.03818354,196.86,196.84,5.0799]
[1739354592469,0.03818354,196.86,196.83,8.92292377]
[1739354592870,0.03709527,196.86,196.83,8.92292377]
[1739354593663,0.03709527,196.86,196.8,13.94009294]
[1739354593866,3.0925,196.9,196.8,13.94009294]
[1739354594062,0.03724622,196.85,196.8,13.94009294]
[1739354594365,0.03724622,196.85,196.77,13.94009294]
[1739354594670,13.94009294,196.89,196.77,13.94009294]
[1739354594866,0.03580217,196.83,196.77,13.94009294]
[1739354595472,0.03580217,196.83,196.8,5.0808]
[1739354595965,0.03580217,196.83,196.82,5.0805]
[1739354596972,0.03580217,196.83,196.81,5.0807]
[1739354597169,0.03580217,196.83,196.77,13.94009294]
[1739354597370,13.94009294,196.89,196.77,13.94009294]
[1739354597569,0.03750524,196.82,196.78,5.0814]
[1739354597769,0.03750524,196.82,196.77,13.94009294]
[1739354598271,0.03750524,196.82,196.79,5.0812]
[1739354598473,0.03750524,196.82,196.74,13.94009294]
[1739354598871,5.0809,196.81,196.77,5.0817]
[1739354599173,0.03750524,196.82,196.77,5.0817]
[1739354599374,0.03750524,196.82,196.77,13.94009294]
[1739354599972,0.03750524,196.82,196.8,5.0809]
[1739354600579,0.03750524,196.82,196.81,5.0808]
[1739354605977,0.03750524,196.82,196.74,13.94009294]
[1739354606182,1.5115,196.84,196.74,13.94009294]
[1739354606384,5.11647123,196.8,196.71,13.94009294]
[1739354607280,5.11647123,196.8,196.73,5.0826]
[1739354607483,5.0814,196.79,196.71,13.94009294]
[1739354607781,0.03537123,196.8,196.71,5.0831]
[1739354608081,5.0821,196.76,196.69,51.40394282]
[1739354608381,5.0821,196.76,196.71,5.0833]
[1739354608583,0.0368771,196.74,196.71,5.0833]
[1739354609886,0.0368771,196.74,196.72,5.083]
[1739354610383,0.0368771,196.74,196.69,51.40394282]
[1739354610585,0.0368771,196.74,196.73,5.0828]
[1739354613081,0.0368771,196.74,196.7,5.0835]
[1739354615782,0.0368771,196.74,196.69,51.40394282]
[1739354616186,0.0368771,196.74,196.65,13.94009294]
[1739354616388,5.0829,196.73,196.67,5.0843]
[1739354617791,5.1194771,196.74,196.68,5.084]
[1739354618185,0.0368771,196.74,196.7,5.0835]
[1739354618684,0.0368771,196.74,196.65,13.94009294]
[1739354618884,0.0368771,196.74,196.68,5.084]
[1739354619080,0.0368771,196.74,196.62,13.94009294]
[1739354619285,13.97697004,196.74,196.62,13.94009294]
[1739354619489,5.0839,196.69,196.62,5.0854]
[1739354619690,0.0385247,196.7,196.59,13.94009294]
[1739354619989,1.4794,196.68,196.59,13.94009294]
[1739354620289,0.03591728,196.66,196.59,13.94009294]
[1739354620689,0.03591728,196.66,196.63,5.0853]
[1739354621692,0.03591728,196.66,196.62,5.0857]
[1739354621892,0.03591728,196.66,196.59,13.94009294]
[1739354622389,0.03591728,196.66,196.61,5.0859]
[1739354623189,0.03591728,196.66,196.59,13.94009294]
[1739354623389,0.03591728,196.66,196.62,5.0856]
[1739354623891,0.03591728,196.66,196.6,5.086]
[1739354624290,0.03591728,196.66,196.59,13.94009294]
[1739354625093,5.12061728,196.66,196.59,13.94009294]
[1739354625297,5.12061728,196.66,196.56,13.94009294]
[1739354625594,5.0847,196.66,196.56,13.94009294]
[1739354625893,0.03219541,196.63,196.6,5.0862]
[1739354626494,0.03219541,196.63,196.61,5.0859]
[1739354627396,0.03219541,196.63,196.62,5.0857]
[1739354628994,0.03219541,196.63,196.61,5.0859]
[1739354629193,0.03219541,196.63,196.56,13.94009294]
[1739354629595,0.03219541,196.63,196.53,13.94009294]
[1739354629796,0.03219541,196.63,196.57,5.0869]
[1739354629997,0.03219541,196.63,196.53,13.94009294]
[1739354630297,0.03219541,196.63,196.6,5.0862]
[1739354630887,0.03219541,196.63,196.56,13.94009294]
[1739354631100,0.03219541,196.63,196.58,5.0865]
[1739354631597,5.11769541,196.63,196.57,5.0869]
[1739354631798,0.03219541,196.63,196.53,13.94009294]
[1739354632191,5.0858,196.62,196.53,13.94009294]
[1739354632998,5.11759541,196.63,196.57,5.0869]
[1739354633200,0.03219541,196.63,196.53,13.94009294]
[1739354633704,0.03219541,196.63,196.59,5.0863]
[1739354634102,8.94378016,196.63,196.58,8.94378016]
[1739354634298,5.0857,196.62,196.56,8.94378016]
[1739354634801,0.0329208,196.61,196.56,8.94378016]
[1739354635402,0.0329208,196.61,196.56,14.03078016]
[1739354636203,0.0329208,196.61,196.56,8.94378016]
[1739354636402,0.0329208,196.61,196.57,5.0869]
[1739354636602,0.0329208,196.61,196.56,8.94378016]
[1739354636796,0.0329208,196.61,196.56,14.03098016]
[1739354637900,8.97670096,196.61,196.54,8.94378016]
[1739354638100,5.0863,196.6,196.54,14.03138016]
[1739354638403,0.0367402,196.59,196.54,8.94378016]
[1739354639713,0.0367402,196.59,196.54,14.03148016]
[1739354640208,0.0367402,196.59,196.54,8.94378016]
[1739354640710,0.0367402,196.59,196.56,8.94378016]
[1739354641006,8.94378016,196.63,196.56,8.94378016]
[1739354641208,0.03538363,196.59,196.57,5.0867]
[1739354642207,0.03538363,196.59,196.58,5.0867]
[1739354642408,0.03538363,196.59,196.56,8.94378016]
[1739354642906,0.03538363,196.59,196.58,8.94378016]
[1739354643203,205.49528016,196.67,196.61,5.0857]
[1739354643409,205.49528016,196.67,196.61,8.94378016]
[1739354643608,0.03633945,196.66,196.61,8.94378016]
[1739354644611,0.03633945,196.66,196.64,5.0851]
[1739354645301,0.03633945,196.66,196.65,5.0849]
[1739354647314,0.03633945,196.66,196.65,14.02868016]
[1739354650107,5.0829,196.73,196.68,5.084]
[1739354650411,6.5969,196.74,196.68,14.02778016]
[1739354650612,1.5143,196.74,196.68,8.94378016]
[1739354650813,1.5143,196.74,196.69,5.0837]
[1739354651008,1.5143,196.74,196.68,8.94378016]
[1739354651209,0.0339587,196.73,196.7,0.03444512]
[1739354653317,8.97773886,196.73,196.7,0.03444512]
[1739354653617,5.0831,196.72,196.7,0.03444512]
[1739354655121,8.94378016,196.71,196.7,0.03444512]
[1739354655312,14.02708016,196.71,196.7,0.03444512]
[1739354655624,8.94378016,196.71,196.7,0.03444512]
[1739354658321,8.97773886,196.73,196.7,0.03444512]
[1739354659522,0.0339587,196.73,196.7,0.03444512]
[1739354660021,8.97773886,196.73,196.7,0.03444512]
[1739354661121,8.94378016,196.71,196.7,0.03444512]
[1739354661322,14.02708016,196.71,196.7,0.03444512]
[1739354664323,5.084,196.69,196.62,8.94378016]
[1739354664618,14.02778016,196.69,196.64,5.085]
[1739354664826,8.94378016,196.69,196.62,8.94378016]
[1739354665226,8.94378016,196.71,196.64,8.94378016]
[1739354665527,0.03417266,196.67,196.64,8.94378016]
[1739354666526,0.03417266,196.67,196.66,5.0846]
[1739354667929,0.03417266,196.67,196.66,14.02838016]
[1739354671025,1.5143,196.74,196.69,5.0836]
[1739354671733,1.5143,196.74,196.68,8.94378016]
[1739354671933,1.5143,196.74,196.68,14.02788016]
[1739354672124,1.5143,196.74,196.69,0.03404544]
[1739354672125,0.03335296,196.73,196.69,0.03404544]
[1739354673228,14.06023312,196.73,196.69,0.03404544]
[1739354673834,8.97713312,196.73,196.69,0.03404544]
[1739354674033,5.0832,196.72,196.69,0.03404544]
[1739354675034,5.0836,196.71,196.69,0.03404544]
[1739354677036,8.97713312,196.73,196.69,0.03404544]
[1739354678240,14.05993312,196.73,196.69,0.03404544]
[1739354679338,5.0832,196.72,196.69,0.03404544]
[1739354681836,14.06003312,196.73,196.69,0.03404544]
[1739354682241,0.03335296,196.73,196.69,0.03404544]
[1739354682944,0.03335296,196.73,196.7,5.0834]
[1739354683938,0.03335296,196.73,196.69,0.03404544]
[1739354684139,8.97713312,196.73,196.69,0.03404544]
[1739354684540,5.0834,196.71,196.69,0.03404544]
[1739354684741,8.97713312,196.73,196.69,0.03404544]
[1739354686239,0.03335296,196.73,196.69,0.03404544]
[1739354688547,0.03335296,196.73,196.69,5.11784544]
[1739354688846,0.03335296,196.73,196.69,0.03404544]
[1739354689849,0.03335296,196.73,196.69,5.11784544]
[1739354690845,0.03335296,196.73,196.69,0.03404544]
[1739354691044,5.11615296,196.73,196.69,0.03404544]
[1739354693045,0.03335296,196.73,196.69,0.03404544]
[1739354693547,5.11625296,196.73,196.69,0.03404544]
[1739354694750,0.03335296,196.73,196.69,5.11784544]
[1739354694945,0.03335296,196.73,196.69,0.03404544]
[1739354696152,0.03335296,196.73,196.71,5.0831]
[1739354696550,0.03335296,196.73,196.69,0.03404544]
[1739354697751,5.11625296,196.73,196.69,0.03404544]
[1739354701245,8.97713312,196.73,196.69,0.03404544]
[1739354701853,0.03335296,196.73,196.69,0.03404544]
[1739354704557,0.03335296,196.73,196.69,5.11784544]
[1739354705054,0.03335296,196.73,196.69,0.03404544]
[1739354706058,5.0831,196.72,196.69,0.03404544]
[1739354706357,8.97713312,196.73,196.69,0.03404544]
[1739354706858,8.94378016,196.71,196.69,0.03404544]
[1739354707053,14.02738016,196.71,196.69,0.03404544]
[1739354708553,8.94378016,196.71,196.69,0.03404544]
[1739354708756,8.94378016,196.71,196.62,8.94378016]
[1739354708958,8.94378016,196.67,196.6,8.94378016]
[1739354709157,8.94378016,196.65,196.58,8.94378016]
[1739354709560,14.02868016,196.65,196.58,14.03028016]
[1739354710058,0.03595719,196.63,196.58,14.03028016]
[1739354710363,0.03595719,196.63,196.59,5.0864]
[1739354712055,0.03595719,196.63,196.58,8.94378016]
[1739354712561,0.03595719,196.63,196.6,8.94378016]
[1739354713054,0.03595719,196.63,196.61,5.0857]
[1739354713662,0.03595719,196.63,196.62,5.0857]
[1739354715568,0.03595719,196.63,196.62,14.02948016]
[1739354716563,8.94378016,196.71,196.62,8.94378016]